Workbook

Sheet Лист1
I1: К постановлению Администрации Североуральского городского округа от .09.2014г. №
A2: Приложение № 2 к муниципальной программе Североуральского городского округа «Развитие жилищно-коммунального хозяйства и транспортного обслуживания населения, повышение энергетической эффективности и охрана окружающей среды в Североуральском городском округе» на 2014-2020 годы
A3: План мероприятий
A4: по выполнению муниципальной программы Североуральского городского округа
A5: «Развитие жилищно-коммунального хозяйства и транспортного обслуживания населения,
A6: повышение энергетической эффективности и охрана окружающей среды в Североуральском городском округе» на 2014-2020 годы
A8: № строки | B8: Наименование мероприятия/ Источники расходов на финансирование | C8: Объем расходов на выполнение мероприятия за счет всех источников ресурсного обеспечения, тыс. руб. | K8: Номер строки целевых показателей, на достижение которых направлены мероприятия
C9: Всего | D9: первый год | E9: второй год | F9: третий год | G9: четвертый год | H9: пятый год | I9: шестой год | J9: седьмой год
B10: ВСЕГО по муниципальной программе, в том числе: | C10: =SUM(C11:C13) -> 930561.8 | D10: =SUM(D11:D13) -> 304826.5 | E10: =SUM(E11:E13) -> 238081.8 | F10: 56041.5 | G10: 82903 | H10: 82903 | I10: 82903 | J10: 82903
B11: местный бюджет | C11: =SUM(D11:J11) -> 580446.7 | D11: =SUM(D15+D19) -> 99464.3 | E11: =SUM(E15+E19) -> 93663.9 | F11: 55974.5 | G11: 82836 | H11: 82836 | I11: 82836 | J11: 82836
B12: областной бюджет | C12: =SUM(D12:J12) -> 251073.1 | D12: =SUM(D16+D20) -> 137104.3 | E12: =SUM(E16+E20) -> 113633.8 | F12: 67 | G12: 67 | H12: 67 | I12: 67 | J12: 67
B13: федеральный бюджет | C13: =SUM(D13:J13) -> 99042 | D13: =SUM(D21+D17) -> 68257.9 | E13: =SUM(E21+E17) -> 30784.1 | F13: 0 | G13: 0 | H13: 0 | I13: 0 | J13: 0
B14: Капитальные вложения | C14: =SUM(C15:C17) -> 591314.2 | D14: =SUM(D15:D17) -> 250694 | E14: =SUM(E15:E17) -> 191046.7 | F14: 8425.5 | G14: 35287 | H14: 35287 | I14: 35287 | J14: 35287
B15: местный бюджет | C15: =SUM(D15:J15) -> 245418.9 | D15: =D29+D88+D133+D156+D182+D216+D252+D271 -> 49149.6 | E15: 46695.8 | F15: 8425.5 | G15: 35287 | H15: 35287 | I15: 35287 | J15: 35287
B16: областной бюджет | C16: =SUM(D16:J16) -> 246853.3 | D16: =D89+D157+D30 -> 133286.5 | E16: =E89+E157 -> 113566.8 | F16: 0 | G16: 0 | H16: 0 | I16: 0 | J16: 0
B17: федеральный бюджет | C17: =SUM(D17:J17) -> 99042 | D17: =D90+D158 -> 68257.9 | E17: 30784.1 | F17: 0 | G17: 0 | H17: 0 | I17: 0 | J17: 0
B18: Прочие нужды | C18: =SUM(C19:C20) -> 339247.6 | D18: =SUM(D19:D20) -> 54132.5 | E18: =SUM(E19:E20) -> 47035.1 | F18: 47616 | G18: 47616 | H18: 47616 | I18: 47616 | J18: 47616
B19: местный бюджет | C19: =SUM(D19:J19) -> 335027.8 | D19: =D44+D107+D142+D174+D225+D261+D281+D193 -> 50314.7 | E19: 46968.1 | F19: 47549 | G19: 47549 | H19: 47549 | I19: 47549 | J19: 47549
B20: областной бюджет | C20: =SUM(D20:J20) -> 4219.8 | D20: =SUM(D108+D280) -> 3817.8 | E20: =SUM(E108+E280) -> 67 | F20: 67 | G20: 67 | H20: 67 | I20: 67 | J20: 67
B21: федеральный бюджет | C21: =SUM(D21:J21) -> 0 | D21: 0 | E21: =E108 -> 0 | F21: 0 | G21: 0 | H21: 0 | I21: 0 | J21: 0
A22: Подпрограмма 1: Комплексное благоустройство территории Североуральского городского округа
B23: Всего по подпрограмме 1, | C23: =SUM(C25+C26) -> 181870.6 | D23: =SUM(D25+D26) -> 25621.9 | E23: =SUM(E25) -> 22806.2 | F23: 26688.5 | G23: 26688.5 | H23: 26688.5 | I23: 26688.5 | J23: 26688.5
B24: в том числе:
B25: местный бюджет | C25: =SUM(D25:J25) -> 180360.6 | D25: =SUM(D29+D44) -> 24111.9 | E25: =SUM(E29+E44) -> 22806.2 | F25: 26688.5 | G25: 26688.5 | H25: 26688.5 | I25: 26688.5 | J25: 26688.5
B26: областной бюджет | C26: =SUM(D26:J26) -> 1510 | D26: =SUM(D30) -> 1510 | E26: =SUM(E30) -> 0 | F26: 0 | G26: 0 | H26: 0 | I26: 0 | J26: 0
A27: 1. Капитальные вложения
B28: Всего по направлению «Капитальные вложения» всего, в том числе | C28: =SUM(D28:J28) -> 38285.8 | D28: =SUM(D29+D30) -> 4038.1 | E28: =SUM(E29) -> 2120.2 | F28: 6425.5 | G28: 6425.5 | H28: 6425.5 | I28: 6425.5 | J28: 6425.5
B29: местный бюджет | C29: =SUM(D29:J29) -> 36775.8 | D29: =SUM(D40) -> 2528.1 | E29: =SUM(E40) -> 2120.2 | F29: 6425.5 | G29: 6425.5 | H29: 6425.5 | I29: 6425.5 | J29: 6425.5
B30: областной бюджет | C30: =SUM(D30:J30) -> 1510 | D30: =SUM(D37) -> 1510 | E30: =SUM(E37) -> 0 | F30: 0 | G30: 0 | H30: 0 | I30: 0 | J30: 0
A31: 1.1. Бюджетные инвестиции в объекты капитального строительства
B32: Бюджетные инвестиции в объекты капитального строительства всего, в том числе | C32: 0 | D32: 0 | E32: 0 | F32: 0 | G32: 0 | H32: 0 | I32: 0 | J32: 0
B33: местный бюджет | C33: 0 | D33: 0 | E33: 0 | F33: 0 | G33: 0 | H33: 0 | I33: 0 | J33: 0
A34: 1.2. Иные капитальные вложения
B35: Всего | C35: =SUM(D35:J35) -> 38285.8 | D35: =SUM(D36:D37) -> 4038.1 | E35: =SUM(E36:E37) -> 2120.2 | F35: 6425.5 | G35: 6425.5 | H35: 6425.5 | I35: 6425.5 | J35: 6425.5
B36: местный бюджет | C36: =SUM(D36:J36) -> 36775.8 | D36: =SUM(D40) -> 2528.1 | E36: =SUM(E40) -> 2120.2 | F36: 6425.5 | G36: 6425.5 | H36: 6425.5 | I36: 6425.5 | J36: 6425.5
B37: областной бюджет | C37: =SUM(D37:J37) -> 1510 | D37: =SUM(D41) -> 1510 | E37: =SUM(E41) -> 0 | F37: 0 | G37: 0 | H37: 0 | I37: 0 | J37: 0
A38: Мероприятие 1 Благоустройство дворовых территорий Североуральского городского округа
B39: Всего, из них | C39: =SUM(D39:J39) -> 38285.8 | D39: =D40+D41 -> 4038.1 | E39: =SUM(E40) -> 2120.2 | F39: 6425.5 | G39: 6425.5 | H39: 6425.5 | I39: 6425.5 | J39: 6425.5 | K39: 4
B40: местный бюджет | C40: =SUM(D40:J40) -> 36775.8 | D40: 2528.1 | E40: 2120.2 | F40: 6425.5 | G40: =SUM(F40) -> 6425.5 | H40: =SUM(G40) -> 6425.5 | I40: =SUM(H40) -> 6425.5 | J40: =SUM(I40) -> 6425.5
B41: областной бюджет | C41: =D41+E41+F41+G41+H41+I41+J41 -> 1510 | D41: 1510 | E41: 0 | F41: 0 | G41: 0 | H41: 0 | I41: 0 | J41: 0
A42: 3. Прочие нужды
B43: Всего по направлению «Прочие нужды», всего, в том числе: | C43: =SUM(D43:J43) -> 143584.8 | D43: =SUM(D44) -> 21583.8 | E43: =SUM(E44) -> 20686 | F43: 20263 | G43: 20263 | H43: 20263 | I43: 20263 | J43: 20263
B44: местный бюджет | C44: =SUM(D44:J44) -> 143584.8 | D44: =SUM(D47+D50+D53+D56) -> 21583.8 | E44: 20686 | F44: 20263 | G44: 20263 | H44: 20263 | I44: 20263 | J44: 20263
A45: Мероприятие 2 - Уличное освещение
B46: Всего, из них | C46: =SUM(D46:J46) -> 90199 | D46: =SUM(D47) -> 11600 | E46: 13000 | F46: 13119.8 | G46: 13119.8 | H46: 13119.8 | I46: 13119.8 | J46: 13119.8 | K46: 7
B47: местный бюджет | C47: =SUM(D47:J47) -> 90199 | D47: 11600 | E47: 13000 | F47: 13119.8 | G47: =SUM(F47) -> 13119.8 | H47: =SUM(G47) -> 13119.8 | I47: =SUM(H47) -> 13119.8 | J47: =SUM(I47) -> 13119.8
A48: Мероприятие 3 - Озеленение (цветники, валка сухих деревьев)
B49: Всего, из них | C49: =SUM(D49:J49) -> 15759 | D49: =SUM(D50) -> 2906.6 | E49: 2056.4 | F49: 2159.2 | G49: 2159.2 | H49: 2159.2 | I49: 2159.2 | J49: 2159.2 | K49: 9
B50: местный бюджет | C50: =SUM(D50:J50) -> 15759 | D50: 2906.6 | E50: 2056.4 | F50: 2159.2 | G50: =SUM(F50) -> 2159.2 | H50: =SUM(G50) -> 2159.2 | I50: =SUM(H50) -> 2159.2 | J50: =SUM(I50) -> 2159.2
A51: Мероприятие 4 - Организация и содержание мест захоронения
B52: Всего, из них | C52: =SUM(D52:J52) -> 15587.3 | D52: =SUM(D53) -> 1995 | E52: 2594.8 | F52: 2199.5 | G52: 2199.5 | H52: 2199.5 | I52: 2199.5 | J52: 2199.5 | K52: 14
B53: местный бюджет | C53: =SUM(D53:J53) -> 15587.3 | D53: 1995 | E53: 2594.8 | F53: 2199.5 | G53: =SUM(F53) -> 2199.5 | H53: =SUM(G53) -> 2199.5 | I53: =SUM(H53) -> 2199.5 | J53: =SUM(I53) -> 2199.5
A54: Мероприятие 5 - Прочие мероприятия по благоустройству
B55: Всего, в том числе: | C55: =SUM(D55:J55) -> 22039.5 | D55: =SUM(D56) -> 5082.2 | E55: 3034.8 | F55: =SUM(F56) -> 2784.5 | G55: 2784.5 | H55: 2784.5 | I55: 2784.5 | J55: 2784.5 | K55: 5,11,12,13,15
B56: местный бюджет | C56: =SUM(D56:J56) -> 22039.5 | D56: =SUM(D59+D62+D65+D68+D71+D77+D74+D80) -> 5082.2 | E56: =SUM(E59+E62+E65+E68+E71+E77+E74+E80) -> 3034.8 | F56: 2784.5 | G56: 2784.5 | H56: 2784.5 | I56: 2784.5 | J56: 2784.5
A57: - Содержание памятников
B58: Всего: | C58: =SUM(C59) -> 1709.8 | D58: 387.3 | E58: 220 | F58: 220.5 | G58: 220.5 | H58: 220.5 | I58: 220.5 | J58: 220.5 | K58: 15
B59: местный бюджет | C59: =SUM(D59:J59) -> 1709.8 | D59: 387.3 | E59: 220 | F59: 220.5 | G59: 220.5 | H59: =SUM(G59) -> 220.5 | I59: =SUM(H59) -> 220.5 | J59: =SUM(I59) -> 220.5
A60: - Проведение комплекса профилактических работ по уходу за объектами благоустройства
B61: Всего: | C61: =SUM(C62) -> 1296.4 | D61: =SUM(D62) -> 1099.4 | E61: =SUM(E62) -> 31.5 | F61: 33.1 | G61: 33.1 | H61: 33.1 | I61: 33.1 | J61: 33.1 | K61: 5
B62: местный бюджет | C62: =SUM(D62:J62) -> 1296.4 | D62: 1099.4 | E62: 31.5 | F62: 33.1 | G62: 33.1 | H62: =SUM(G62) -> 33.1 | I62: =SUM(H62) -> 33.1 | J62: =SUM(I62) -> 33.1
A63: - Регулирование численности безнадзорных животных
B64: Всего: | C64: =SUM(C65) -> 3781.5 | D64: =SUM(D65) -> 500 | E64: =SUM(E65) -> 525 | F64: 551.3 | G64: 551.3 | H64: 551.3 | I64: 551.3 | J64: 551.3 | K64: 11
B65: местный бюджет | C65: =SUM(D65:J65) -> 3781.5 | D65: 500 | E65: 525 | F65: 551.3 | G65: 551.3 | H65: =SUM(G65) -> 551.3 | I65: =SUM(H65) -> 551.3 | J65: =SUM(I65) -> 551.3
A66: - Содержание биоямы (скотомогильник)
B67: Всего: | C67: =SUM(C68) -> 589.9 | D67: =SUM(D68) -> 130.4 | E67: =SUM(E68) -> 73.5 | F67: 77.2 | G67: 77.2 | H67: 77.2 | I67: 77.2 | J67: 77.2 | K67: 13
B68: местный бюджет | C68: =SUM(D68:J68) -> 589.9 | D68: 130.4 | E68: 73.5 | F68: 77.2 | G68: 77.2 | H68: =SUM(G68) -> 77.2 | I68: =SUM(H68) -> 77.2 | J68: =SUM(I68) -> 77.2
A69: - Обустройство новогодних городков
B70: Всего: | C70: =SUM(C71) -> 13111.8 | D70: =SUM(D71) -> 1685.5 | E70: =SUM(E71) -> 2134.8 | F70: 1858.3 | G70: 1858.3 | H70: 1858.3 | I70: 1858.3 | J70: 1858.3 | K70: 5
B71: местный бюджет | C71: =SUM(D71:J71) -> 13111.8 | D71: 1685.5 | E71: 2134.8 | F71: 1858.3 | G71: 1858.3 | H71: =SUM(G71) -> 1858.3 | I71: =SUM(H71) -> 1858.3 | J71: =SUM(I71) -> 1858.3
A72: - Приобретение декоративного освещения для улиц города Североуральска
B73: Всего: | C73: =SUM(C74) -> 1050 | D73: =SUM(D74) -> 1050 | E73: =SUM(E74) -> 0 | F73: 0 | G73: 0 | H73: 0 | I73: 0 | J73: 0 | K73: 5
B74: местный бюджет | C74: =SUM(D74:J74) -> 1050 | D74: 1050 | E74: 0 | F74: 0 | G74: 0 | H74: =SUM(G74) -> 0 | I74: =SUM(H74) -> 0 | J74: =SUM(I74) -> 0
A75: - Акарицидная обработка общественных мест
B76: Всего: | C76: =SUM(C77) -> 412.1 | D76: =SUM(D77) -> 141.6 | E76: =SUM(E77) -> 50 | F76: 44.1 | G76: 44.1 | H76: 44.1 | I76: 44.1 | J76: 44.1 | K76: 12
B77: местный бюджет | C77: =SUM(D77:J77) -> 412.1 | D77: 141.6 | E77: 50 | F77: 44.1 | G77: 44.1 | H77: =SUM(G77) -> 44.1 | I77: =SUM(H77) -> 44.1 | J77: =SUM(I77) -> 44.1
A78: - Приобретение грунта плодородного (земли садовой)
B79: Всего: | C79: =SUM(C80) -> 88 | D79: =SUM(D80) -> 88 | E79: =SUM(E80) -> 0 | F79: 0 | G79: 0 | H79: 0 | I79: 0 | J79: 0 | K79: 9
B80: местный бюджет | C80: =SUM(D80:J80) -> 88 | D80: 88 | E80: 0 | F80: 0 | G80: 0 | H80: =SUM(G80) -> 0 | I80: =SUM(H80) -> 0 | J80: =SUM(I80) -> 0
A81: Подпрограмма 2: Муниципальная программа по энергосбережению и повышению энергетической эффективности объектов Североуральского городского округа
B82: Всего по подпрограмме 2, в том числе | C82: =SUM(D82:J82) -> 38793.9 | D82: =SUM(D83:D85) -> 9647.4 | E82: =SUM(E83:E85) -> 6467.5 | F82: 4535.8 | G82: 4535.8 | H82: 4535.8 | I82: 4535.8 | J82: 4535.8
B83: местный бюджет | C83: =SUM(D83:J83) -> 32449.5 | D83: =SUM(D88+D107) -> 3303 | E83: =SUM(E88+E107) -> 6467.5 | F83: =F88+F107 -> 4535.8 | G83: =SUM(G88+G107) -> 4535.8 | H83: =SUM(H88+H107) -> 4535.8 | I83: =SUM(I88+I107) -> 4535.8 | J83: =SUM(J88+J107) -> 4535.8
B84: областной бюджет | C84: =SUM(D84:J84) -> 6344.4 | D84: =SUM(D89+D108) -> 6344.4 | E84: =SUM(E89+E108) -> 0 | F84: 0 | G84: 0 | H84: 0 | I84: 0 | J84: 0
B85: федеральный бюджет | C85: =SUM(D85:J85) -> 0 | D85: 0 | E85: =SUM(E90+E108) -> 0 | F85: 0 | G85: 0 | H85: 0 | I85: 0 | J85: 0
A86: 1. Капитальные вложения
B87: Всего по направлению «Капитальные вложения», всего, в том числе | C87: =SUM(C88:C90) -> 17187.4 | D87: =SUM(D88:D90) -> 3187.4 | E87: =SUM(E88:E90) -> 4000 | F87: 2000 | G87: 2000 | H87: 2000 | I87: 2000 | J87: 2000
B88: местный бюджет | C88: =SUM(D88:J88) -> 14431 | D88: 431 | E88: =SUM(E97) -> 4000 | F88: 2000 | G88: 2000 | H88: 2000 | I88: 2000 | J88: 2000
B89: областной бюджет | C89: =SUM(D89:J89) -> 2756.4 | D89: =SUM(D98) -> 2756.4 | E89: =SUM(E98) -> 0 | F89: 0 | G89: 0 | H89: 0 | I89: 0 | J89: 0
B90: федеральный бюджет | C90: =SUM(D90:J90) -> 0 | D90: =SUM(D99) -> 0 | E90: =SUM(E99) -> 0 | F90: 0 | G90: 0 | H90: 0 | I90: 0 | J90: 0
A91: 1.1. Бюджетные инвестиции в объекты капитального строительства
B92: Бюджетные инвестиции в объекты капитального строительства всего, в том числе | C92: 0 | D92: 0 | E92: 0 | F92: 0 | G92: 0 | H92: 0 | I92: 0 | J92: 0
B93: местный бюджет | C93: 0 | D93: 0 | E93: 0 | F93: 0 | G93: 0 | H93: 0 | I93: 0 | J93: 0
B94: областной бюджет
A95: 1.2. Иные капитальные вложения
B96: Всего, в том числе | C96: =SUM(C97:C99) -> 17187.4 | D96: =SUM(D97:D99) -> 3187.4 | E96: =SUM(E97:E99) -> 4000 | F96: 2000 | G96: 2000 | H96: 2000 | I96: 2000 | J96: 2000
B97: местный бюджет | C97: =SUM(D97:J97) -> 14431 | D97: =SUM(D102) -> 431 | E97: =SUM(E102) -> 4000 | F97: 2000 | G97: 2000 | H97: 2000 | I97: 2000 | J97: 2000
B98: областной бюджет | C98: =SUM(D98:J98) -> 2756.4 | D98: =SUM(D103) -> 2756.4 | E98: =SUM(E103) -> 0 | F98: 0 | G98: 0 | H98: 0 | I98: 0 | J98: 0
B99: федеральный бюджет | C99: =SUM(D99:J99) -> 0 | D99: =SUM(D104) -> 0 | E99: =SUM(E104) -> 0 | F99: 0 | G99: 0 | H99: 0 | I99: 0 | J99: 0
A100: Мероприятие 6- Реконструкция, модернизация водопроводных сетей, сетей системы водоотведения с заменой (без замены) оборудования с более высоким КПД, установка регулируемого привода, реконструкция тепловых сетей, в том числе тепловых пунктов, котельных
B101: Всего, из них | C101: =SUM(C102:C104) -> 17187.4 | D101: =SUM(D102:D104) -> 3187.4 | E101: =SUM(E102:E104) -> 4000 | F101: 2000 | G101: 2000 | H101: 2000 | I101: 2000 | J101: 2000 | K101: 27
B102: местный бюджет | C102: =SUM(D102:J102) -> 14431 | D102: 431 | E102: 4000 | F102: 2000 | G102: =SUM(F102) -> 2000 | H102: 2000 | I102: 2000 | J102: 2000
B103: областной бюджет | C103: =SUM(D103:J103) -> 2756.4 | D103: 2756.4 | E103: 0 | F103: =SUM(E103*1.05) -> 0 | G103: 0 | H103: 0 | I103: 0 | J103: 0
B104: федеральный бюджет | C104: =SUM(D104:J104) -> 0 | D104: 0 | E104: 0 | F104: 0 | G104: =SUM(F104) -> 0 | H104: =SUM(G104) -> 0 | I104: =SUM(H104) -> 0 | J104: =SUM(I104) -> 0
A105: 3. Прочие нужды
B106: Всего по направлению «Прочие нужды», всего, в том числе: | C106: =SUM(D106:J106) -> 21606.5 | D106: =SUM(D107:D108) -> 6460 | E106: =SUM(E107:E108) -> 2467.5 | F106: 2535.8 | G106: 2535.8 | H106: 2535.8 | I106: 2535.8 | J106: 2535.8
B107: местный бюджет | C107: =SUM(D107:J107) -> 18018.5 | D107: =SUM(D111+D120+D124+D127) -> 2872 | E107: =SUM(E111+E120+E124+E127) -> 2467.5 | F107: 2535.8 | G107: 2535.8 | H107: 2535.8 | I107: 2535.8 | J107: 2535.8
B108: областной бюджет | C108: =SUM(D108:J108) -> 3588 | D108: =SUM(D121+D112) -> 3588 | E108: =SUM(E121+E112) -> 0 | F108: 0 | G108: 0 | H108: 0 | I108: 0 | J108: 0
A109: Мероприятие 7 - Оснащение зданий (строений, сооружений), находящихся в муниципальной собственности, многоквартирных жилых домов, жилых помещений, квартир приборами учета используемых энергетических ресурсов, в том числе разработка проектно-сметной документации
B110: всего, в том числе: | C110: =SUM(D110:J110) -> 6794 | D110: =SUM(D111:D112) -> 4200 | E110: 415 | F110: 435.8 | G110: 435.8 | H110: 435.8 | I110: 435.8 | J110: 435.8 | K110: 19,21,22,23,24
B111: местный бюджет | C111: =SUM(D111:J111) -> 3794 | D111: =SUM(D116) -> 1200 | E111: =SUM(E116) -> 415 | F111: 435.8 | G111: 435.8 | H111: 435.8 | I111: 435.8 | J111: 435.8
B112: областной бюджет | C112: =SUM(D112:J112) -> 3000 | D112: =SUM(D117) -> 3000 | E112: =SUM(E113) -> 0 | F112: 0 | G112: 0 | H112: 0 | I112: 0 | J112: 0
B113: федеральный бюджет | C113: =SUM(D113:J113) -> 0 | D113: 0 | E113: 0 | F113: 0 | G113: =SUM(F113) -> 0 | H113: =SUM(G113) -> 0 | I113: =SUM(H113) -> 0 | J113: =SUM(I113) -> 0
A114: - Оснащение жилых домов (субсидии)
B115: Всего: | C115: =SUM(C116:C117) -> 6794 | D115: =SUM(D116:D117) -> 4200 | E115: =SUM(E116) -> 415 | F115: 435.8 | G115: 435.8 | H115: 435.8 | I115: 435.8 | J115: 435.8
B116: местный бюджет | C116: =SUM(D116:J116) -> 3794 | D116: 1200 | E116: 415 | F116: 435.8 | G116: =SUM(F116) -> 435.8 | H116: =SUM(G116) -> 435.8 | I116: =SUM(H116) -> 435.8 | J116: =SUM(I116) -> 435.8
B117: областной бюджет | C117: =SUM(D117:J117) -> 3000 | D117: 3000 | E117: 0 | F117: 0 | G117: 0 | H117: 0 | I117: 0 | J117: 0
A118: Мероприятие 9 - Закупка и установка осветительного оборудования с заменой неэффективного на энергосберегающее, в том числе замена ламп накаливания на энергосберегающие, модернизация сетей уличного освещения, проектно-сметные работы, экспертиза проектно-сметной документации
B119: всего, из них: | C119: =SUM(C120:C121) -> 14330 | D119: =SUM(D120:D121) -> 1830 | E119: =SUM(E120:E121) -> 2000 | F119: 2100 | G119: 2100 | H119: 2100 | I119: 2100 | J119: 2100 | K119: 26
B120: местный бюджет | C120: =SUM(D120:J120) -> 13742 | D120: 1242 | E120: 2000 | F120: 2100 | G120: =SUM(F120) -> 2100 | H120: 2100 | I120: 2100 | J120: 2100
B121: областной бюджет | C121: =SUM(D121:J121) -> 588 | D121: 588 | E121: 0 | F121: 0 | G121: 0 | H121: 0 | I121: 0 | J121: 0
A122: Мероприятие 10 - Разработка схемы водоснабжения Североуральского городского округа
B123: всего, из них: | C123: =SUM(D123:J123) -> 380 | D123: =SUM(D124) -> 380 | E123: =SUM(E124) -> 0 | F123: 0 | G123: 0 | H123: 0 | I123: 0 | J123: 0 | K123: 28
B124: местный бюджет | C124: =SUM(D124:J124) -> 380 | D124: 380 | E124: 0 | F124: 0 | G124: =SUM(F124) -> 0 | H124: =SUM(G124) -> 0 | I124: =SUM(H124) -> 0 | J124: =SUM(I124) -> 0
A125: Мероприятие 11 - Прочие мероприятия (оформление актов выбора трассы под строительство водопроводов, сетей уличного освещения, газопроводов и т.п.)
B126: всего, из них: | C126: =SUM(D126:J126) -> 102.5 | D126: =SUM(D127) -> 50 | E126: =SUM(E127) -> 52.5 | F126: 0 | G126: 0 | H126: 0 | I126: 0 | J126: 0 | K126: 29
B127: местный бюджет | C127: =SUM(D127:J127) -> 102.5 | D127: 50 | E127: 52.5 | F127: 0 | G127: =SUM(F127) -> 0 | H127: =SUM(G127) -> 0 | I127: =SUM(H127) -> 0 | J127: =SUM(I127) -> 0
A128: Подпрограмма 3: Развитие лесного хозяйства на территории Североуральского городского округа
B129: Всего по подпрограмме 1, всего, в том числе | C129: =SUM(C130:C130) -> 1943.1 | D129: =SUM(D130) -> 749.1 | E129: =SUM(E130) -> 191 | F129: 200.6 | G129: 200.6 | H129: 200.6 | I129: 200.6 | J129: 200.6
B130: местный бюджет | C130: =SUM(D130:J130) -> 1943.1 | D130: =SUM(D142) -> 749.1 | E130: =SUM(E142) -> 191 | F130: 200.6 | G130: 200.6 | H130: 200.6 | I130: 200.6 | J130: 200.6
A131: 1. Капитальные вложения
B132: Всего по направлению «Капитальные вложения», всего, в том числе | C132: 0 | D132: 0 | E132: 0 | F132: 0 | G132: 0 | H132: 0 | I132: 0 | J132: 0
B133: местный бюджет | C133: 0 | D133: 0 | E133: 0 | F133: 0 | G133: 0 | H133: 0 | I133: 0 | J133: 0
A134: 1.1. Бюджетные инвестиции в объекты капитального строительства
B135: Бюджетные инвестиции в объекты капитального строительства всего, в том числе: | C135: =SUM(C136) -> 0 | D135: =SUM(D136) -> 0 | E135: 0 | F135: 0 | G135: 0 | H135: 0 | I135: 0 | J135: 0
B136: местный бюджет | C136: 0 | D136: 0 | E136: 0 | F136: 0 | G136: 0 | H136: 0 | I136: 0 | J136: 0
A137: 1.2. Иные капитальные вложения
B138: Всего, в том числе: | C138: =SUM(A140) -> 0 | D138: 0 | E138: 0 | F138: 0 | G138: 0 | H138: 0 | I138: 0 | J138: 0
B139: местный бюджет | C139: 0 | D139: 0 | E139: 0 | F139: 0 | G139: 0 | H139: 0 | I139: 0 | J139: 0
A140: 3. Прочие нужды
B141: Всего, из них | C141: =SUM(C142:C142) -> 1943.1 | D141: 749.1 | E141: 191 | F141: 200.6 | G141: 200.6 | H141: 200.6 | I141: 200.6 | J141: 200.6
B142: местный бюджет | C142: =SUM(D142:J142) -> 1943.1 | D142: =SUM(D145) -> 749.1 | E142: =SUM(E145) -> 191 | F142: 200.6 | G142: 200.6 | H142: 200.6 | I142: 200.6 | J142: 200.6
A143: Мероприятие 12 - Развитие лесного хозяйства на территории Североуральского городского округа
B144: Всего, в том числе: | C144: =SUM(D144:J144) -> 1943.1 | D144: =SUM(D145) -> 749.1 | E144: =SUM(E145) -> 191 | F144: 200.6 | G144: 200.6 | H144: 200.6 | I144: 200.6 | J144: 200.6 | K144: 33
B145: местный бюджет | C145: =SUM(D145:J145) -> 1943.1 | D145: =SUM(D148) -> 749.1 | E145: =SUM(E148) -> 191 | F145: 200.6 | G145: 200.6 | H145: 200.6 | I145: 200.6 | J145: 200.6
A146: - Межевание городских лесов, постановка на кадастровый учет
B147: Всего: | C147: =SUM(C148) -> 1943.1 | D147: =SUM(D148) -> 749.1 | E147: =SUM(E148) -> 191 | F147: 200.6 | G147: 200.6 | H147: 200.6 | I147: 200.6 | J147: 200.6 | K147: 33
B148: местный бюджет | C148: =SUM(D148:J148) -> 1943.1 | D148: 749.1 | E148: 191 | F148: 200.6 | G148: =SUM(F148) -> 200.6 | H148: =SUM(G148) -> 200.6 | I148: =SUM(H148) -> 200.6 | J148: =SUM(I148) -> 200.6
A149: Подпрограмма 4 : Переселение граждан на территории Североуральского городского округа из аварийного жилищного фонда с учетом необходимости развития малоэтажного жилищного строительства
B150: Всего по подпрограмме 4, всего, в том числе | C150: =SUM(C151:C153) -> 535841 | D150: =SUM(D151:D153) -> 243468.5 | E150: 184926.5 | F150: 0 | G150: 26861.5 | H150: 26861.5 | I150: 26861.5 | J150: 26861.5
B151: местный бюджет | C151: =SUM(D151:J151) -> 194212.1 | D151: =SUM(D156) -> 46190.5 | E151: =SUM(E156) -> 40575.6 | F151: 0 | G151: 26861.5 | H151: 26861.5 | I151: 26861.5 | J151: 26861.5
B152: областной бюджет | C152: =SUM(D152:J152) -> 242586.9 | D152: =SUM(D157) -> 129020.1 | E152: =SUM(E157) -> 113566.8 | F152: 0 | G152: 0 | H152: 0 | I152: 0 | J152: 0
B153: федеральный бюджет | C153: =SUM(D153:J153) -> 99042 | D153: =SUM(D158) -> 68257.9 | E153: =SUM(E158) -> 30784.1 | F153: 0 | G153: 0 | H153: 0 | I153: 0 | J153: 0
A154: 1. Капитальные вложения
B155: Всего по направлению «Капитальные вложения», всего, в том числе | C155: =SUM(C156:C158) -> 535841 | D155: =SUM(D156:D158) -> 243468.5 | E155: =SUM(E156:E158) -> 184926.5 | F155: 0 | G155: 26861.5 | H155: 26861.5 | I155: 26861.5 | J155: 26861.5
B156: местный бюджет | C156: =SUM(D156:J156) -> 194212.1 | D156: =SUM(D169) -> 46190.5 | E156: =SUM(E169) -> 40575.6 | F156: 0 | G156: 26861.5 | H156: 26861.5 | I156: 26861.5 | J156: 26861.5
B157: областной бюджет | C157: =SUM(D157:J157) -> 242586.9 | D157: =SUM(D170) -> 129020.1 | E157: =SUM(E170) -> 113566.8 | F157: 0 | G157: 0 | H157: 0 | I157: 0 | J157: 0
B158: федеральный бюджет | C158: =SUM(D158:J158) -> 99042 | D158: =SUM(D171) -> 68257.9 | E158: =SUM(E171) -> 30784.1 | F158: 0 | G158: 0 | H158: 0 | I158: 0 | J158: 0
A159: 1.1. Бюджетные инвестиции в объекты капитального строительства
B160: Бюджетные инвестиции в объекты капитального строительства всего, в том числе: | C160: =SUM(C161) -> 0 | D160: =SUM(D161) -> 0 | E160: 0 | F160: 0 | G160: 0 | H160: 0 | I160: 0 | J160: 0
B161: местный бюджет | C161: 0 | D161: 0 | E161: 0 | F161: 0 | G161: 0 | H161: 0 | I161: 0 | J161: 0
A162: 1.2. Иные капитальные вложения
B163: Всего, в том числе: | C163: =SUM(D163:J163) -> 535841 | D163: =SUM(D164:D166) -> 243468.5 | E163: =SUM(E164:E166) -> 184926.5 | F163: 0 | G163: 26861.5 | H163: 26861.5 | I163: 26861.5 | J163: 26861.5
B164: местный бюджет | C164: =SUM(D164:J164) -> 194212.1 | D164: =SUM(D169) -> 46190.5 | E164: 40575.6 | F164: 0 | G164: 26861.5 | H164: 26861.5 | I164: 26861.5 | J164: 26861.5
B165: областной бюджет | C165: =SUM(D165:J165) -> 242586.9 | D165: =SUM(D170) -> 129020.1 | E165: =SUM(E170) -> 113566.8 | F165: 0 | G165: 0 | H165: 0 | I165: 0 | J165: 0
B166: федеральный бюджет | C166: =SUM(D166:J166) -> 99042 | D166: 68257.9 | E166: =SUM(E171) -> 30784.1 | F166: 0 | G166: 0 | H166: 0 | I166: 0 | J166: 0
A167: Мероприятие 13 - Переселение граждан на территории Североуральского городского округа из аварийного жилищного фонда с учетом необходимости развития малоэтажного жилищного строительства
B168: Всего по направлению «Капитальные вложения», всего, в том числе | C168: =SUM(D168:J168) -> 535841 | D168: =SUM(D169:D171) -> 243468.5 | E168: =SUM(E169:E171) -> 184926.5 | F168: 0 | G168: 26861.5 | H168: 26861.5 | I168: 26861.5 | J168: 26861.5 | K168: 37, 39, 40
B169: местный бюджет | C169: =SUM(D169:J169) -> 194212.1 | D169: 46190.5 | E169: 40575.6 | F169: 0 | G169: 26861.5 | H169: 26861.5 | I169: 26861.5 | J169: 26861.5
B170: областной бюджет | C170: =SUM(D170:J170) -> 242586.9 | D170: 129020.1 | E170: 113566.8 | F170: 0 | G170: 0 | H170: 0 | I170: 0 | J170: 0
B171: федеральный бюджет | C171: =SUM(D171:J171) -> 99042 | D171: 68257.9 | E171: 30784.1 | F171: 0 | G171: 0 | H171: 0 | I171: 0 | J171: 0
A172: 3 Прочие нужды
B173: Всего, в том числе: | C173: 0 | D173: 0 | E173: 0 | F173: 0 | G173: 0 | H173: 0 | I173: 0 | J173: 0
B174: местный бюджет | C174: 0 | D174: 0 | E174: 0 | F174: 0 | G174: 0 | H174: 0 | I174: 0 | J174: 0
A175: Подпрограмма 5 : Содержание и капитальный ремонт общего имущества муниципального жилищного фонда на территории Североуральского городского округа
B176: Всего по подпрограмме 5, в том числе | C176: =C177+C178+C179 -> 64719.9 | D176: 8335.8 | E176: 9021.6 | F176: 9472.5 | G176: 9472.5 | H176: 9472.5 | I176: 9472.5 | J176: 9472.5
B177: областной бюджет | C177: =SUM(D177:J177) -> 0 | D177: =SUM(D191) -> 0 | E177: =SUM(E191) -> 0 | F177: 0 | G177: 0 | H177: 0 | I177: 0 | J177: 0
B178: федеральный бюджет | C178: =SUM(D178:J178) -> 0 | D178: =SUM(D192) -> 0 | E178: =SUM(E192) -> 0 | F178: 0 | G178: 0 | H178: 0 | I178: 0 | J178: 0
B179: местный бюджет | C179: =SUM(D179:J179) -> 64719.9 | D179: =SUM(D193) -> 8335.8 | E179: =SUM(E193) -> 9021.6 | F179: 9472.5 | G179: 9472.5 | H179: 9472.5 | I179: 9472.5 | J179: 9472.5
A180: 1. Капитальные вложения
B181: Всего по направлению «Капитальные вложения», всего, в том числе | C181: =SUM(C182) -> 0 | D181: =SUM(D182) -> 0 | E181: 0 | F181: 0 | G181: 0 | H181: 0 | I181: 0 | J181: 0
B182: местный бюджет | C182: 0 | D182: 0 | E182: 0 | F182: 0 | G182: 0 | H182: 0 | I182: 0 | J182: 0
A183: 1.1. Бюджетные инвестиции в объекты капитального строительства
B184: Бюджетные инвестиции в объекты капитального строительства всего, в том числе: | C184: =SUM(C185) -> 0 | D184: =SUM(D185) -> 0 | E184: 0 | F184: 0 | G184: 0 | H184: 0 | I184: 0 | J184: 0
B185: местный бюджет | C185: =SUM(D185:J185) -> 0 | D185: 0 | E185: 0 | F185: 0 | G185: 0 | H185: 0 | I185: 0 | J185: 0
A186: 1.2. Иные капитальные вложения
B187: Всего, в том числе: | C187: 0 | D187: =SUM(C185) -> 0 | E187: 0 | F187: 0 | G187: 0 | H187: 0 | I187: 0 | J187: 0
B188: местный бюджет | C188: =SUM(D188:J188) -> 0 | D188: 0 | E188: 0 | F188: 0 | G188: 0 | H188: 0 | I188: 0 | J188: 0
A189: 3 Прочие нужды
B190: Всего, в том числе: | C190: =SUM(C191:C193) -> 64719.9 | D190: =SUM(D191:D193) -> 8335.8 | E190: =SUM(E191:E193) -> 9021.6 | F190: 9472.5 | G190: 9472.5 | H190: 9472.5 | I190: 9472.5 | J190: 9472.5
B191: областной бюджет | C191: =SUM(D191:J191) -> 0 | D191: =SUM(D209) -> 0 | E191: =SUM(E209) -> 0 | F191: 0 | G191: 0 | H191: 0 | I191: 0 | J191: 0
B192: федеральный бюджет | C192: =SUM(D192:J192) -> 0 | D192: =SUM(D210) -> 0 | E192: =SUM(E210) -> 0 | F192: 0 | G192: 0 | H192: 0 | I192: 0 | J192: 0
B193: местный бюджет | C193: =SUM(D193:J193) -> 64719.9 | D193: =D196+D199+D202+D205+D208 -> 8335.8 | E193: 9021.6 | F193: 9472.5 | G193: 9472.5 | H193: 9472.5 | I193: 9472.5 | J193: 9472.5
A194: Мероприятие 14 - Ремонт общего имущества и квартир, в которых проживают отдельные категории граждан муниципального жилищного фонда в целях приведения в состояние, отвечающее требованиям пожарной безопасности, санитарно-техническим и иным требованиям
B195: Всего, из них | C195: =SUM(C196) -> 8162.6 | D195: =SUM(D196) -> 1465 | E195: =SUM(E196) -> 1081.6 | F195: 1123.2 | G195: 1123.2 | H195: 1123.2 | I195: 1123.2 | J195: 1123.2 | K195: 44
B196: местный бюджет | C196: =SUM(D196:J196) -> 8162.6 | D196: 1465 | E196: 1081.6 | F196: 1123.2 | G196: =SUM(F196) -> 1123.2 | H196: =SUM(G196) -> 1123.2 | I196: =SUM(H196) -> 1123.2 | J196: =SUM(I196) -> 1123.2
A197: Мероприятие 15 - Возмещение недополученных доходов организациям, предоставляющим населению жилищные услуги по тарифам, не обеспечивающим возмещение издержек, по содержанию лифтового хозяйства
B198: Всего, из них | C198: =SUM(D198:J198) -> 11813.9 | D198: =SUM(D199) -> 1969.9 | E198: =SUM(E199) -> 1575 | F198: 1653.8 | G198: 1653.8 | H198: 1653.8 | I198: 1653.8 | J198: 1653.8 | K198: 46
B199: местный бюджет | C199: =SUM(D199:J199) -> 11813.9 | D199: 1969.9 | E199: 1575 | F199: 1653.8 | G199: =SUM(F199) -> 1653.8 | H199: =SUM(G199) -> 1653.8 | I199: =SUM(H199) -> 1653.8 | J199: =SUM(I199) -> 1653.8
A200: Мероприятие 16 - Возмещение недополученных доходов организациям, предоставляющим населению жилищные услуги по тарифам, не обеспечивающим возмещение издержек, по содержанию и текущему ремонту общего имущества многоквартирных домов поселка Покровск-Уральский
B201: Всего, из них | C201: =SUM(D201:J201) -> 8317 | D201: =SUM(D202) -> 1754.5 | E201: =SUM(E202) -> 1050 | F201: 1102.5 | G201: 1102.5 | H201: 1102.5 | I201: 1102.5 | J201: 1102.5 | K201: 46
... 95 more rows

Sheet Лист2

Sheet Лист3
